[Event "ESTCC-65 2025"]
[Site "Swidnica"]
[Date "2025.04.05"]
[Round "1.9"]
[White "Rooze, Jan"]
[Black "Nunn, John D M"]
[Result "1/2-1/2"]
[Annotator "TA"]
[ECO "B51"]
[WhiteElo "2198"]
[BlackElo "2528"]
[PlyCount "54"]
[EventDate "2025.04.05"]
[EventType "team-tourn"]
[EventCountry "POL"]
[SourceTitle "playchess.com"]
[Source "ChessBase"]
[SourceQuality "1"]
[WhiteTeam "Belgium"]
[BlackTeam "England"]
[WhiteTeamCountry "BEL"]
[BlackTeamCountry "ENG"]
[TimeControl "40/5400+30:1800+30"]

{[%evp 9,54,27,20,23,33,19,30,40,54,41,50,52,55,42,51,20,16,8,3,13,3,17,15,0,0,-46,-7,-7,-12,-18,0,-3,-10,-17,-18,-11,0,0,0,0,0,-32,6,9,15,3,23]} 1. e4 {[%emt 0:00:04]} c5 {[%emt 0:00:11]} 2. Nf3 {[%emt 0:00:04]} d6 {[%emt 0:00:06]} 3. Bb5+ {[%emt 0:00:05]} Nd7 {[%emt 0:00:09]} 4. a4 {[%emt 0:00:25]} Ngf6 {[%emt 0:00:49][%cal Bg8f6,Bf6g4,Bg4e5,Be5c6][%mdl 32]} 5. Nc3 {[%emt 0:00:09]} g6 {[%emt 0:08:59]} 6. O-O {[%emt 0:05:53] B51: Sicilian: Moscow Variation (3 Bb5+) without 3...Bd7.} Bg7 {[%emt 0:00:20]} 7. a5 {[%emt 0:06:38]} O-O {[%emt 0:00:52]} 8. Re1 {[%emt 0:06:59] White has an edge.} Ng4 {[%emt 0:10:10]} 9. d4 $146 {[%emt 0:07:06] Prevents Nge5.} (9. d3 Nge5 10. Nxe5 Nxe5 11. f4 Nc6 12. a6 Qb6 13. axb7 Bxb7 14. Bc4 e6 15. Kh1 {0-1 Seo,J (2514)-Korchmar,V (2438) Titled Tuesday intern op 09th Aug Early blitz 2022 (6)}) 9... cxd4 {[%emt 0:08:07]} 10. Nxd4 {[%emt 0:00:45]} a6 {[%emt 0:00:12]} 11. Be2 {[%emt 0:02:54] A sharp opening} Nge5 {[%emt 0:04:07]} 12. f4 {[%emt 0:03:55]} Nc6 {[%emt 0:00:21]} 13. Nb3 {[%emt 0:04:45]} b6 {[%emt 0:06:52]} 14. axb6 {[%emt 0:02:42]} Qxb6+ {[%emt 0:01:04]} 15. Kh1 {[%emt 0:00:39]} Bb7 {[%emt 0:00:26]} 16. Nd5 {[%emt 0:08:40]} Qd8 {[%emt 0:01:06]} 17. Bd2 {[%emt 0:00:35]} (17. Nc3 $11) 17... e6 {[%emt 0:15:25]} (17... Bxb2 $5 18. Ra2 Bf6 $11) 18. Na5 {[%emt 0:06:01]} exd5 {[%emt 0:04:34]} 19. Nxb7 {[%emt 0:00:27]} Qc7 {[%emt 0:00:20]} 20. exd5 {[%emt 0:00:36]} Nd4 {[%emt 0:00:19]} 21. Na5 {[%emt 0:01:30][%cal Bb7a5,Ba5c4,Bc4d6][%mdl 32]} Qxc2 {[%emt 0:00:44]} 22. Nc4 {[%emt 0:11:27]} Rfe8 {[%emt 0:04:18] [#] White must now prevent ...Rxe2.} 23. Bf1 {[%emt 0:02:07]} Rxe1 {[%emt 0:01:59]} 24. Bxe1 {[%emt 0:01:04]} Qe4 {[%emt 0:13:31]} 25. Nxd6 {[%emt 0:03:25]} Qxf4 {[%emt 0:00:16][%cal Rf4f1]} 26. Bg3 {[%emt 0:00:43]} (26. Rxa6 $2 Qxf1#) 26... Qg5 {[%emt 0:00:08]} 27. Ra4 {[%emt 0:05:32]} Nf5 {[%emt 0:01:54] Weighted Error Value: White=0.09 (flawless) /Black=0.06 (flawless)   Mistake:       	White=1     	---        Inaccurate:     	White=2     	Black=2      OK:         	White=10    	Black=13     Best:        	White=2     	---        Strong:       	White=1     	---} 1/2-1/2

[Event "ESTCC-65 2025"]
[Site "Swidnica"]
[Date "2025.04.05"]
[Round "1.10"]
[White "Mestel, A Jonathan"]
[Black "Goormachtigh, Johan"]
[Result "1-0"]
[Annotator "RC"]
[ECO "B48"]
[WhiteElo "2449"]
[BlackElo "2207"]
[PlyCount "64"]
[EventDate "2025.04.05"]
[EventType "team-tourn"]
[EventCountry "POL"]
[SourceTitle "playchess.com"]
[Source "ChessBase"]
[SourceQuality "1"]
[WhiteTeam "England"]
[BlackTeam "Belgium"]
[WhiteTeamCountry "ENG"]
[BlackTeamCountry "BEL"]
[TimeControl "40/5400+30:1800+30"]

1. e4 {[%emt 0:00:08]} c5 {[%emt 0:00:17]} 2. Nf3 {[%emt 0:00:12]} e6 {[%emt 0:00:11]} 3. d4 {[%emt 0:00:18]} cxd4 {[%emt 0:00:09]} 4. Nxd4 {[%emt 0:00:09]} Nc6 {[%emt 0:00:39]} 5. Nc3 {[%emt 0:00:20]} Qc7 {[%emt 0:00:59]} 6. Be3 {[%emt 0:00:52]} a6 {[%emt 0:00:40]} 7. Qd2 {[%emt 0:00:41]} Nf6 {[%emt 0:01:00]} 8. O-O-O {[%emt 0:00:57]} Bb4 {[%emt 0:02:08]} 9. f3 {[%emt 0:01:08]} O-O {[%emt 0:06:08]} 10. a3 {[%emt 0:02:58]} Be7 {[%emt 0:00:19]} 11. g4 {[%emt 0:00:13]} b5 {[%emt 0:01:05]} 12. h4 {[%emt 0:03:43]} b4 {[%emt 0:14:16]} 13. axb4 {[%emt 0:00:36]} Bxb4 {[%emt 0:17:59]} 14. h5 {[%emt 0:04:04]} d5 {[%emt 0:25:52]} 15. g5 {[%emt 0:10:57]} Ne8 {[%emt 0:00:06]} 16. Nxc6 {[%emt 0:08:06]} Qxc6 {[%emt 0:00:18]} 17. exd5 {[%emt 0:00:11]} exd5 {[%emt 0:00:29]} 18. Qxd5 {[%emt 0:02:56]} Bb7 {[%emt 0:01:30]} 19. Qxc6 {[%emt 0:02:45]} Bxc6 {[%emt 0:00:02]} 20. Nd5 {[%emt 0:01:46]} Bxd5 {[%emt 0:05:54]} 21. Rxd5 {[%emt 0:00:51]} Nc7 {[%emt 0:00:13]} 22. Rd3 {[%emt 0:03:28]} Ne6 {[%emt 0:04:24]} 23. c3 {[%emt 0:21:54]} Be7 {[%emt 0:08:43]} 24. f4 {[%emt 0:00:50]} a5 {[%emt 0:01:27]} 25. Bg2 {[%emt 0:06:33]} Rab8 {[%emt 0:00:19]} 26. Bd5 {[%emt 0:00:53]} Bc5 {[%emt 0:06:27]} 27. g6 {[%emt 0:01:26]} Bxe3+ {[%emt 0:00:35]} 28. Rxe3 {[%emt 0:00:08]} Nxf4 {[%emt 0:01:00]} 29. Bxf7+ {[%emt 0:11:51]} Kh8 {[%emt 0:00:05]} 30. Rf1 {[%emt 0:04:32]} Nxh5 {[%emt 0:01:36]} 31. Rh1 {[%emt 0:00:09]} Nf6 {[%emt 0:00:34]} 32. Re6 {[%emt 0:00:11]} Rxf7 {[%emt 0:01:06]} 1-0

[Event "ESTCC-65 2025"]
[Site "Swidnica"]
[Date "2025.04.05"]
[Round "1.11"]
[White "Stuer, Marc"]
[Black "Large, Peter G"]
[Result "1/2-1/2"]
[Annotator "ChessBase"]
[ECO "A46"]
[WhiteElo "2038"]
[BlackElo "2342"]
[PlyCount "82"]
[EventDate "2025.04.05"]
[EventType "team-tourn"]
[EventCountry "POL"]
[SourceTitle "playchess.com"]
[Source "ChessBase"]
[SourceQuality "1"]
[WhiteTeam "Belgium"]
[BlackTeam "England"]
[WhiteTeamCountry "BEL"]
[BlackTeamCountry "ENG"]
[TimeControl "40/5400+30:1800+30"]

1. d4 {[%emt 0:00:05]} Nf6 {[%emt 0:00:13]} 2. Nf3 {[%emt 0:00:07]} e6 {[%emt 0:00:08]} 3. g3 {[%emt 0:00:06]} d5 {[%emt 0:00:33]} 4. Bg2 {[%emt 0:00:07]} Bd6 {[%emt 0:00:33]} 5. O-O {[%emt 0:00:09]} O-O {[%emt 0:00:07]} 6. c4 {[%emt 0:00:22]} Nc6 {[%emt 0:00:31]} 7. b3 {[%emt 0:23:44]} a5 {[%emt 0:03:26]} 8. Bb2 {[%emt 0:02:13]} a4 {[%emt 0:01:56]} 9. bxa4 {[%emt 0:04:54]} dxc4 {[%emt 0:11:40]} 10. Nfd2 {[%emt 0:12:06]} Na5 {[%emt 0:20:53]} 11. e4 {[%emt 0:09:06]} Bb4 {[%emt 0:01:43]} 12. Qc2 {[%emt 0:01:56]} c5 {[%emt 0:26:23]} 13. dxc5 {[%emt 0:18:37]} Qd3 {[%emt 0:02:28]} 14. Qxd3 {[%emt 0:04:45]} cxd3 {[%emt 0:00:13]} 15. Rc1 {[%emt 0:03:36]} Rd8 {[%emt 0:03:25]} 16. a3 {[%emt 0:01:34]} Bxd2 {[%emt 0:00:44]} 17. Nxd2 {[%emt 0:00:03]} Bd7 {[%emt 0:00:49]} 18. Bc3 {[%emt 0:05:48]} Bxa4 {[%emt 0:00:32]} 19. Bxa5 {[%emt 0:03:05]} Rxa5 {[%emt 0:00:10]} 20. Rab1 {[%emt 0:00:05]} Bc6 {[%emt 0:04:11]} 21. Rc3 {[%emt 0:01:52]} e5 {[%emt 0:05:13]} 22. Rbb3 {[%emt 0:03:03]} g5 {[%emt 0:00:31]} 23. Rxd3 {[%emt 0:00:38]} Rxd3 {[%emt 0:00:07]} 24. Rxd3 {[%emt 0:00:08]} Rxc5 {[%emt 0:00:07]} 25. f3 {[%emt 0:03:17]} Rc2 {[%emt 0:00:18]} 26. Nf1 {[%emt 0:00:22]} Bd7 {[%emt 0:10:17]} 27. Ne3 {[%emt 0:00:32]} Rc1+ {[%emt 0:00:28]} 28. Kf2 {[%emt 0:00:09]} Be6 {[%emt 0:00:26]} 29. Nd5 {[%emt 0:01:18]} Rc2+ {[%emt 0:00:50]} 30. Kg1 {[%emt 0:00:29]} Kg7 {[%emt 0:00:58]} 31. Rc3 {[%emt 0:00:53]} Rb2 {[%emt 0:00:53]} 32. Nb4 {[%emt 0:00:29]} g4 {[%emt 0:01:44]} 33. Nd3 {[%emt 0:00:23]} Rb1+ {[%emt 0:01:22]} 34. Kf2 {[%emt 0:00:17]} gxf3 {[%emt 0:00:36]} 35. Bxf3 {[%emt 0:00:05]} Nd7 {[%emt 0:00:54]} 36. Ke3 {[%emt 0:00:50]} b6 {[%emt 0:00:49]} 37. Nb4 Nc5 {[%emt 0:00:40]} 38. Nd5 {[%emt 0:01:03]} Bxd5 {[%emt 0:01:31]} 39. exd5 {[%emt 0:00:01]} e4 {[%emt 0:00:33]} 40. Bg4 {[%emt 0:00:00]} Rf1 {[%emt 0:00:00]} 41. d6 {[%emt 0:09:17]} Rf6 {[%emt 0:10:41]} 1/2-1/2

[Event "ESTCC-65 2025"]
[Site "Swidnica"]
[Date "2025.04.05"]
[Round "1.12"]
[White "Baker, Chris W"]
[Black "Van Herck, Marcel"]
[Result "1-0"]
[Annotator "ChessBase"]
[ECO "A46"]
[WhiteElo "2151"]
[BlackElo "1962"]
[PlyCount "63"]
[EventDate "2025.04.05"]
[EventType "team-tourn"]
[EventCountry "POL"]
[SourceTitle "playchess.com"]
[Source "ChessBase"]
[SourceQuality "1"]
[WhiteTeam "England"]
[BlackTeam "Belgium"]
[WhiteTeamCountry "ENG"]
[BlackTeamCountry "BEL"]
[TimeControl "40/5400+30:1800+30"]

1. d4 {[%emt 0:00:09]} Nf6 {[%emt 0:00:08]} 2. Nf3 {[%emt 0:00:36]} e6 {[%emt 0:01:06]} 3. g3 {[%emt 0:01:09]} d5 {[%emt 0:03:31]} 4. Bg2 {[%emt 0:00:46]} Be7 {[%emt 0:00:19]} 5. O-O {[%emt 0:01:03]} O-O {[%emt 0:00:13]} 6. c4 {[%emt 0:00:49]} dxc4 {[%emt 0:01:24]} 7. Qc2 {[%emt 0:02:57]} a6 {[%emt 0:01:43]} 8. Bg5 {[%emt 0:06:00]} h6 {[%emt 0:06:33]} 9. Bxf6 {[%emt 0:05:40]} Bxf6 {[%emt 0:00:06]} 10. Nc3 {[%emt 0:07:38]} Bd7 {[%emt 0:15:17]} 11. Rfd1 {[%emt 0:11:37]} Bc6 {[%emt 0:07:54]} 12. e4 {[%emt 0:04:24]} g6 {[%emt 0:09:15]} 13. a4 {[%emt 0:06:22]} b6 {[%emt 0:02:23]} 14. d5 {[%emt 0:02:13]} exd5 {[%emt 0:00:05]} 15. Nxd5 {[%emt 0:00:44]} Bxd5 {[%emt 0:04:08]} 16. Rxd5 {[%emt 0:00:59]} Qe7 {[%emt 0:00:19]} 17. e5 {[%emt 0:00:53]} Bg7 {[%emt 0:01:43]} 18. Qxc4 {[%emt 0:05:23]} c6 {[%emt 0:02:47]} 19. Rd6 {[%emt 0:03:11]} Nd7 {[%emt 0:04:24]} 20. Rxg6 {[%emt 0:08:53]} b5 {[%emt 0:02:25]} 21. Rxg7+ {[%emt 0:02:59]} Kxg7 {[%emt 0:00:10]} 22. Qg4+ {[%emt 0:00:42]} Kh8 {[%emt 0:00:56]} 23. Qh5 {[%emt 0:02:04]} Kg7 {[%emt 0:03:07]} 24. Rd1 {[%emt 0:05:41]} Nc5 {[%emt 0:01:12]} 25. Rd4 {[%emt 0:02:41]} Rh8 {[%emt 0:01:30]} 26. Nh4 {[%emt 0:02:07]} Kf8 {[%emt 0:01:03]} 27. Bxc6 {[%emt 0:01:24]} Rd8 {[%emt 0:04:41]} 28. Qf3 {[%emt 0:03:48]} Rg8 {[%emt 0:00:55]} 29. Nf5 {[%emt 0:01:09]} Qg5 {[%emt 0:01:31]} 30. Rxd8+ {[%emt 0:00:52]} Qxd8 {[%emt 0:00:08]} 31. axb5 {[%emt 0:00:39]} axb5 {[%emt 0:00:07]} 32. Qd1 1-0

[Event "ESTCC-65 2025"]
[Site "Swidnica"]
[Date "2025.04.05"]
[Round "1.13"]
[White "Janocha, Wieslaw"]
[Black "Beilfuss, Wilfried"]
[Result "1-0"]
[Annotator "ChessBase"]
[ECO "B30"]
[WhiteElo "2186"]
[BlackElo "2070"]
[PlyCount "33"]
[EventDate "2025.04.05"]
[EventType "team-tourn"]
[EventCountry "POL"]
[SourceTitle "playchess.com"]
[Source "ChessBase"]
[SourceQuality "1"]
[WhiteTeam "Poland"]
[BlackTeam "Germany"]
[WhiteTeamCountry "POL"]
[BlackTeamCountry "GER"]
[TimeControl "40/5400+30:1800+30"]

1. e4 {[%emt 0:00:05]} c5 {[%emt 0:00:16]} 2. Nf3 {[%emt 0:00:08]} Nc6 {[%emt 0:00:10]} 3. Bb5 {[%emt 0:00:43]} Nf6 {[%emt 0:00:45]} 4. e5 {[%emt 0:02:02]} Nd5 {[%emt 0:00:36]} 5. Nc3 {[%emt 0:02:09]} Nc7 {[%emt 0:02:42]} 6. Bxc6 {[%emt 0:01:21]} dxc6 {[%emt 0:00:19]} 7. d3 {[%emt 0:05:33]} g6 {[%emt 0:05:07]} 8. h3 {[%emt 0:01:38]} Bg7 {[%emt 0:00:25]} 9. O-O {[%emt 0:00:29]} O-O {[%emt 0:00:30]} 10. Re1 {[%emt 0:14:32]} Ne6 {[%emt 0:03:27]} 11. b3 {[%emt 0:06:51]} b6 {[%emt 0:02:10]} 12. Bb2 {[%emt 0:07:13]} Qc7 {[%emt 0:11:55]} 13. Ne4 {[%emt 0:06:26]} Bd7 {[%emt 0:02:26]} 14. Qd2 {[%emt 0:02:39]} Rad8 {[%emt 0:01:06]} 15. Nf6+ {[%emt 0:03:21]} exf6 {[%emt 0:21:33]} 16. exf6 {[%emt 0:00:39]} Qf4 {[%emt 0:01:00]} 17. fxg7 {[%emt 0:00:17]} 1-0

[Event "ESTCC-65 2025"]
[Site "Swidnica"]
[Date "2025.04.05"]
[Round "1.14"]
[White "Woestmann, Hans-Joachim"]
[Black "Zyla, Janusz"]
[Result "0-1"]
[Annotator "ChessBase"]
[ECO "D34"]
[WhiteElo "2029"]
[BlackElo "2181"]
[PlyCount "98"]
[EventDate "2025.04.05"]
[EventType "team-tourn"]
[EventCountry "POL"]
[SourceTitle "playchess.com"]
[Source "ChessBase"]
[SourceQuality "1"]
[TimeControl "40/5400+30:1800+30"]

1. Nf3 {[%emt 0:00:11]} d5 {[%emt 0:00:31]} 2. d4 {[%emt 0:00:13]} c5 {[%emt 0:01:39]} 3. c4 {[%emt 0:01:47]} e6 {[%emt 0:00:19]} 4. cxd5 {[%emt 0:01:18]} exd5 {[%emt 0:00:10]} 5. Nc3 {[%emt 0:00:14]} Nc6 {[%emt 0:01:36]} 6. g3 {[%emt 0:00:59]} Nf6 {[%emt 0:00:16]} 7. Bg2 {[%emt 0:00:11]} Be7 {[%emt 0:00:29]} 8. O-O {[%emt 0:00:14]} Be6 {[%emt 0:00:38]} 9. b3 {[%emt 0:03:08]} O-O {[%emt 0:02:45]} 10. Bb2 {[%emt 0:00:53]} Ne4 {[%emt 0:03:30]} 11. Rc1 {[%emt 0:07:49]} Bf6 {[%emt 0:02:15]} 12. dxc5 {[%emt 0:05:50]} Qa5 {[%emt 0:10:05]} 13. Qe1 {[%emt 0:06:33]} Bxc3 {[%emt 0:08:34]} 14. Bxc3 {[%emt 0:00:22]} Qxa2 {[%emt 0:00:15]} 15. Qd1 {[%emt 0:09:33]} Rfd8 {[%emt 0:13:55]} 16. e3 {[%emt 0:10:08]} Bg4 {[%emt 0:16:01]} 17. Bd4 {[%emt 0:22:37]} Bxf3 {[%emt 0:09:00]} 18. Bxf3 {[%emt 0:02:48]} Nd2 {[%emt 0:01:05]} 19. Re1 {[%emt 0:02:52]} Nxf3+ {[%emt 0:13:02]} 20. Qxf3 {[%emt 0:00:14]} Qxb3 {[%emt 0:00:11]} 21. Qg4 {[%emt 0:00:37]} Nxd4 {[%emt 0:00:39]} 22. exd4 {[%emt 0:00:10]} Rab8 {[%emt 0:08:10]} 23. Re7 {[%emt 0:02:40]} a5 {[%emt 0:01:59]} 24. Qf5 {[%emt 0:05:17]} Rf8 {[%emt 0:00:15]} 25. Rb1 {[%emt 0:02:43]} Qc4 {[%emt 0:00:18]} 26. Qf4 {[%emt 0:04:43]} a4 {[%emt 0:02:24]} 27. Rbxb7 {[%emt 0:04:31]} Rxb7 {[%emt 0:00:14]} 28. Rxb7 {[%emt 0:00:01]} a3 {[%emt 0:00:59]} 29. Ra7 {[%emt 0:00:34]} a2 {[%emt 0:00:35]} 30. Qd2 {[%emt 0:00:45]} Rb8 {[%emt 0:00:33]} 31. Rxa2 {[%emt 0:00:20]} Rb1+ {[%emt 0:00:22]} 32. Kg2 {[%emt 0:00:14]} Qf1+ {[%emt 0:00:10]} 33. Kf3 {[%emt 0:00:01]} h5 {[%emt 0:02:19]} 34. Kf4 {[%emt 0:03:43]} Re1 {[%emt 0:00:34]} 35. Kg5 {[%emt 0:03:08]} Re6 {[%emt 0:00:55]} 36. Kh4 {[%emt 0:00:37]} Rg6 {[%emt 0:01:11]} 37. h3 {[%emt 0:00:27]} Qh1 {[%emt 0:00:07]} 38. Ra8+ {[%emt 0:00:11]} Kh7 {[%emt 0:00:06]} 39. Qd3 {[%emt 0:00:08]} Qc1 {[%emt 0:01:21]} 40. Qe3 {[%emt 0:00:00]} Qb1 {[%emt 0:00:00]} 41. Qe8 {[%emt 0:14:27]} Rh6 {[%emt 0:04:33]} 42. Qg8+ {[%emt 0:04:01]} Kg6 {[%emt 0:00:09]} 43. Ra6+ {[%emt 0:00:08]} f6 {[%emt 0:01:00]} 44. Qxd5 {[%emt 0:00:30]} Kh7 {[%emt 0:03:52]} 45. Ra7 {[%emt 0:01:59]} Rg6 {[%emt 0:05:45]} 46. Re7 {[%emt 0:04:38]} Qg1 {[%emt 0:02:26]} 47. Qf5 {[%emt 0:01:58]} Qd1 {[%emt 0:00:43]} 48. Re4 {[%emt 0:01:50]} Kh6 {[%emt 0:02:42]} 49. Rg4 {[%emt 0:01:53]} Rxg4+ {[%emt 0:01:05]} 0-1

[Event "ESTCC-65 2025"]
[Site "Swidnica"]
[Date "2025.04.05"]
[Round "1.15"]
[White "Czajkowski, Ryszard"]
[Black "Mueller, Gerhard"]
[Result "1/2-1/2"]
[Annotator "NA"]
[ECO "D48"]
[WhiteElo "1963"]
[BlackElo "2052"]
[PlyCount "36"]
[EventDate "2025.04.05"]
[EventType "team-tourn"]
[EventCountry "POL"]
[SourceTitle "playchess.com"]
[Source "ChessBase"]
[SourceQuality "1"]
[WhiteTeam "Poland"]
[BlackTeam "Germany"]
[WhiteTeamCountry "POL"]
[BlackTeamCountry "GER"]
[TimeControl "40/5400+30:1800+30"]

1. d4 {[%emt 0:00:02]} d5 {[%emt 0:00:09]} 2. c4 {[%emt 0:00:15]} c6 {[%emt 0:00:06]} 3. Nf3 {[%emt 0:00:14]} Nf6 {[%emt 0:01:13]} 4. Nc3 {[%emt 0:00:12]} e6 {[%emt 0:02:23]} 5. e3 {[%emt 0:00:38]} Nbd7 {[%emt 0:00:22]} 6. Bd3 {[%emt 0:00:57]} dxc4 {[%emt 0:01:11]} 7. Bxc4 {[%emt 0:00:06]} b5 {[%emt 0:00:55]} 8. Bd3 {[%emt 0:05:12]} a6 {[%emt 0:00:14]} 9. O-O {[%emt 0:02:00]} c5 {[%emt 0:04:05]} 10. Qe2 {[%emt 0:05:36]} Bb7 {[%emt 0:01:59]} 11. Rd1 {[%emt 0:03:39]} Qb6 {[%emt 0:03:23]} 12. Bd2 {[%emt 0:13:51]} Be7 {[%emt 0:01:53]} 13. Rac1 {[%emt 0:03:05]} O-O {[%emt 0:01:18]} 14. Be1 {[%emt 0:08:47]} Rfd8 {[%emt 0:03:53]} 15. Bc2 {[%emt 0:03:13]} Nf8 {[%emt 0:03:15]} 16. dxc5 {[%emt 0:03:28]} Bxc5 {[%emt 0:00:35]} 17. a3 {[%emt 0:04:05]} Rxd1 {[%emt 0:02:29]} 18. Rxd1 {[%emt 0:03:17]} Rd8 {[%emt 0:00:10]} 1/2-1/2

[Event "ESTCC-65 2025"]
[Site "Swidnica"]
[Date "2025.04.05"]
[Round "1.16"]
[White "Lange, Torsten"]
[Black "Krupa, Krzysztof"]
[Result "1-0"]
[Annotator "NA"]
[ECO "A28"]
[WhiteElo "2025"]
[BlackElo "1919"]
[PlyCount "101"]
[EventDate "2025.04.05"]
[EventType "team-tourn"]
[EventCountry "POL"]
[SourceTitle "playchess.com"]
[Source "ChessBase"]
[SourceQuality "1"]
[WhiteTeam "Germany"]
[BlackTeam "Poland"]
[WhiteTeamCountry "GER"]
[BlackTeamCountry "POL"]
[TimeControl "40/5400+30:1800+30"]

1. c4 {[%emt 0:00:30]} e5 {[%emt 0:00:04]} 2. Nc3 {[%emt 0:00:00]} Nc6 {[%emt 0:00:32]} 3. Nf3 {[%emt 0:00:00]} Nf6 {[%emt 0:00:26]} 4. d4 {[%emt 0:00:11]} exd4 {[%emt 0:00:44]} 5. Nxd4 {[%emt 0:00:07]} Bb4 {[%emt 0:00:36]} 6. Bg5 {[%emt 0:00:13]} h6 {[%emt 0:00:29]} 7. Bh4 {[%emt 0:00:08]} g5 {[%emt 0:03:41]} 8. Bg3 {[%emt 0:00:08]} Ne4 {[%emt 0:00:06]} 9. Nxc6 {[%emt 0:10:18]} Bxc3+ {[%emt 0:22:12]} 10. bxc3 {[%emt 0:00:18]} dxc6 {[%emt 0:02:16]} 11. Qd4 {[%emt 0:08:50]} Qxd4 {[%emt 0:01:28]} 12. cxd4 {[%emt 0:00:09]} Be6 {[%emt 0:03:35]} 13. e3 {[%emt 0:18:16]} O-O-O {[%emt 0:00:53]} 14. f3 {[%emt 0:05:54]} Nd6 {[%emt 0:05:08]} 15. Be5 {[%emt 0:06:43]} Rhg8 {[%emt 0:07:30]} 16. Rc1 {[%emt 0:03:13]} Nf5 {[%emt 0:10:37]} 17. Kf2 {[%emt 0:01:01]} Rdf8 {[%emt 0:05:35]} 18. g4 {[%emt 0:03:37]} Nh4 {[%emt 0:02:03]} 19. Bg3 {[%emt 0:01:07]} f5 20. Bxh4 {[%emt 0:02:46]} gxh4 {[%emt 0:02:17]} 21. gxf5 {[%emt 0:00:30]} Bxf5 {[%emt 0:00:25]} 22. Be2 {[%emt 0:02:33]} Rg6 {[%emt 0:01:11]} 23. Rhg1 {[%emt 0:01:16]} Rgf6 {[%emt 0:00:55]} 24. Rg7 {[%emt 0:03:47]} R6f7 {[%emt 0:10:09]} 25. Rcg1 {[%emt 0:01:21]} Kd7 {[%emt 0:01:10]} 26. Ke1 {[%emt 0:03:42]} Bb1 {[%emt 0:04:31]} 27. a3 {[%emt 0:00:22]} c5 {[%emt 0:00:23]} 28. Kd2 {[%emt 0:03:15]} Bf5 {[%emt 0:01:18]} 29. e4 {[%emt 0:01:35]} Bh3 {[%emt 0:02:43]} 30. Ke3 {[%emt 0:00:29]} cxd4+ {[%emt 0:00:17]} 31. Kxd4 {[%emt 0:00:15]} Ke7 {[%emt 0:02:40]} 32. f4 {[%emt 0:03:36]} Rd8+ {[%emt 0:03:44]} 33. Ke3 {[%emt 0:00:17]} Rxg7 {[%emt 0:03:14]} 34. Rxg7+ {[%emt 0:00:16]} Kd6 {[%emt 0:01:56]} 35. e5+ {[%emt 0:05:18]} Kc6 {[%emt 0:01:09]} 36. Bf3+ {[%emt 0:00:42]} Kb6 {[%emt 0:00:11]} 37. c5+ {[%emt 0:00:30]} Kb5 {[%emt 0:01:04]} 38. Rxc7 {[%emt 0:00:51]} Bf5 {[%emt 0:00:33]} 39. Be2+ {[%emt 0:06:38]} Ka4 {[%emt 0:01:09]} 40. Rxb7 {[%emt 0:00:00]} a5 {[%emt 0:00:00]} 41. Rf7 {[%emt 0:03:37]} Bd7 {[%emt 0:18:52]} 42. f5 {[%emt 0:02:40]} Kxa3 {[%emt 0:00:22]} 43. e6 {[%emt 0:02:31]} Bc6 {[%emt 0:07:15]} 44. Rc7 {[%emt 0:03:03]} Be8 {[%emt 0:01:47]} 45. f6 {[%emt 0:02:00]} Bg6 {[%emt 0:03:55]} 46. Rd7 {[%emt 0:01:24]} Re8 {[%emt 0:00:43]} 47. e7 {[%emt 0:00:52]} Kb4 {[%emt 0:00:43]} 48. c6 {[%emt 0:00:42]} Kc5 {[%emt 0:00:44]} 49. Bf3 {[%emt 0:02:08]} Kb6 {[%emt 0:01:03]} 50. Kd4 {[%emt 0:01:23]} Bf7 {[%emt 0:00:19]} 51. Bd5 {[%emt 0:00:36]} 1-0

[Event "ESTCC-65 2025"]
[Site "Swidnica"]
[Date "2025.04.06"]
[Round "2.1"]
[White "Nunn, John D M"]
[Black "Janocha, Wieslaw"]
[Result "1/2-1/2"]
[Annotator "TA"]
[ECO "B04"]
[WhiteElo "2528"]
[BlackElo "2186"]
[PlyCount "52"]
[EventDate "2025.04.05"]
[EventType "team-tourn"]
[EventCountry "POL"]
[SourceTitle "playchess.com"]
[Source "ChessBase"]
[SourceQuality "1"]
[WhiteTeam "England"]
[BlackTeam "Poland"]
[WhiteTeamCountry "ENG"]
[BlackTeamCountry "POL"]
[TimeControl "40/5400+30:1800+30"]

{[%evp 12,52,28,35,29,29,20,30,38,-5,0,0,0,0,-1,7,0,-29,-15,-13,0,-24,-19,-31,-27,-24,-18,-16,-16,-10,-21,-8,0,0,0,0,0,0,0,0,0,-12,0]} 1. e4 {[%emt 0:00:05]} Nf6 {[%emt 0:00:11]} 2. e5 {[%emt 0:00:24]} Nd5 {[%emt 0:00:07]} 3. d4 {[%emt 0:00:07]} d6 {[%emt 0:00:09]} 4. Nf3 {[%emt 0:01:36]} dxe5 {[%emt 0:00:22]} 5. Nxe5 {[%emt 0:00:07]} g6 {[%emt 0:00:11]} 6. Be2 {[%emt 0:05:38]} Bg7 {[%emt 0:04:55]} 7. O-O {[%emt 0:00:30]} O-O {[%emt 0:01:21][%cal Oc7c5] B04: Alekhine's Defence: 4 Nf3.} 8. c4 {[%emt 0:02:35]} Nb6 {[%emt 0:01:15][%cal Oc7c5]} 9. Nc3 {[%emt 0:02:02]} Be6 {[%emt 0:01:24] White has an edge.} 10. d5 {[%emt 0:11:33] Against Nc6} Bxd5 {[%emt 0:04:49]} 11. Nxg6 {[%emt 0:02:06]} hxg6 {[%emt 0:02:35] A sharp opening} 12. cxd5 $146 {[%emt 0:00:25]} (12. Nxd5 Nc6 13. Bg5 Bxb2 14. Rb1 Be5 15. f4 Bd4+ 16. Kh1 f6 17. Bh6 Rf7 18. Qd3 {½-½ Vorontsov,N (2360)-Kupreichik,V (2500) Kurgan 1995 (4)}) 12... Bxc3 {[%emt 0:08:00]} 13. bxc3 {[%emt 0:00:16]} Qxd5 {[%emt 0:00:05]} 14. Qc2 {[%emt 0:16:39] Strongly threatening Bf3. White sacrificed a pawn} Nc6 {[%emt 0:01:37]} 15. Re1 {[%emt 0:02:43]} Rfe8 {[%emt 0:05:30]} 16. Bf4 {[%emt 0:02:08]} e5 {[%emt 0:03:50]} 17. Rad1 {[%emt 0:01:18]} Qc5 {[%emt 0:03:27]} 18. Be3 {[%emt 0:03:46] [#] A strong pair of Bishops.} Nd4 $1 {[%emt 0:00:24]} 19. Bxd4 {[%emt 0:04:47] The position is equal.} exd4 {[%emt 0:04:19]} 20. Rxd4 {[%emt 0:00:05]} Nd5 {[%emt 0:00:05]} 21. Kf1 $1 {[%emt 0:01:08]} Qxc3 {[%emt 0:01:51]} (21... Nxc3 $2 {loses.} 22. Rc4 Qe5 (22... Rxe2 $2 23. Qxe2 Nxe2 24. Rxc5 $18) 23. Rxc3 $18 (23. Qxc3 Qxh2 24. Qh3 Qxh3 $18)) (21... Qd6 {with more complications.} 22. g3 Qc6 23. Bf3 Rxe1+ 24. Kxe1 Ne3) 22. Qxc3 {[%emt 0:00:06]} Nxc3 {[%emt 0:00:03]} 23. Bf3 $1 {[%emt 0:00:05]} c6 {[%emt 0:21:37]} 24. Rc1 {[%emt 0:04:53]} Nd5 {[%emt 0:00:28]} 25. Bxd5 {[%emt 0:00:08]} cxd5 {[%emt 0:00:04]} 26. Rxd5 {[%emt 0:00:34]} Re7 {[%emt 0:00:09] Weighted Error Value: White=0.06 (flawless) /Black=0.03 (flawless)   Inaccurate:     	White=2     	---        OK:         	White=7     	Black=8      Best:        	White=1     	---        Strong:       	White=2     	---} 1/2-1/2